bitfinex/quotes_ETHUSD_20260228
["timestamp","ask_amount","ask_price","bid_price","bid_amount"]
[1772290619625,1.68294642,1889.8,1888.5,7.16407227]
[1772290619838,3.59194642,1889.8,1888.5,7.16407227]
[1772290620141,0.36005035,1889.8,1888.5,7.16407227]
[1772290620347,1.68294229,1889.8,1888.5,7.16407227]
[1772290620723,0.36005035,1889.8,1888.6,3.2838274]
[1772290620925,1.32254139,1890.3,1888.7,5.84027032]
[1772290621240,1.733,1890.3,1889.2,5.84027032]
[1772290621419,1.32442465,1890.5,1889.2,5.84027032]
[1772290622132,3.23142465,1890.5,1889.2,5.84027032]
[1772290622339,1.907,1890.4,1889.2,5.84027032]
[1772290622854,1.906,1890.4,1889.2,5.84027032]
[1772290623346,1.906,1890.4,1888.9,1.32352162]
[1772290623347,6.01229525,1890.1,1888.9,1.32352162]
[1772290623835,6.01229525,1889.8,1888.7,1.32361137]
[1772290624040,1.905,1889.7,1888.7,1.32361137]
[1772290624347,6.01229525,1889.8,1888.5,11.13541629]
[1772290624521,9.29612265,1889.7,1888.5,7.16407227]
[1772290625346,1.32303132,1889.6,1888.5,7.16407227]
[1772290626338,1.906,1889.5,1888.5,7.16407227]
[1772290626527,3.2838274,1889.4,1888.3,5.29565861]
[1772290626852,3.2838274,1889.4,1887.9,1.32419456]
[1772290626853,6.01229525,1889.3,1887.9,1.32419456]
[1772290627149,1.32303132,1889.6,1887.5,11.13809799]
[1772290627150,9.29612265,1889.0,1887.7,5.84027032]
[1772290627356,1.32352162,1888.9,1887.8,1.32429282]
[1772290627534,7.33581687,1888.9,1887.8,1.32429282]
[1772290627729,3.22931145,1889.2,1888.0,5.84027032]
[1772290627939,1.32331145,1889.2,1888.0,5.84027032]
[1772290628326,1.906,1889.1,1888.0,5.84027032]
[1772290628527,3.22931145,1889.2,1888.0,5.84027032]
[1772290628728,3.23031145,1889.2,1888.0,5.84027032]
[1772290628928,9.2426067,1889.2,1887.9,2.001]
[1772290629137,7.3356067,1889.2,1887.9,7.84127032]
[1772290629355,1.908,1889.1,1888.0,5.84027032]
[1772290629523,1.32310134,1889.5,1888.3,5.84027032]
[1772290629727,3.23110134,1889.5,1888.3,5.84027032]
[1772290629962,3.2838274,1888.6,1887.2,5.84027032]
[1772290630250,9.29612265,1888.9,1887.2,5.84027032]
[1772290630457,6.99428095,1888.8,1887.2,5.84027032]
[1772290630631,6.99428095,1888.8,1887.2,7.84427032]
[1772290631654,6.08228095,1888.5,1887.2,9.16894197]
[1772290631858,1.557,1888.4,1887.3,6.07483176]
[1772290632027,9.36610835,1888.6,1887.3,6.07483176]
[1772290632229,1.907,1888.5,1887.3,6.07483176]
[1772290632857,1.907,1888.4,1887.3,6.07483176]
[1772290633162,1.906,1888.4,1887.3,6.07483176]
[1772290634158,1.32380195,1888.5,1887.4,1.32457348]
[1772290634334,1.905,1888.4,1887.4,1.32457348]
[1772290636537,1.32394217,1888.3,1887.4,1.32457348]
[1772290637172,1.32392356,1888.4,1887.4,7.39940524]
[1772290638471,1.32359169,1888.8,1887.4,7.39940524]
[1772290638674,1.905,1888.7,1887.4,7.39940524]
[1772290638869,1.905,1888.7,1887.5,6.07583176]
[1772290639042,1.32359169,1888.8,1887.5,6.07583176]
[1772290639242,9.30987264,1888.8,1887.5,6.07583176]
[1772290639974,6.08228095,1888.7,1887.5,6.07583176]
[1772290640851,1.32373186,1888.6,1887.6,1.32443314]
[1772290641651,7.40601281,1888.6,1887.5,0.001]
[1772290642283,3.2838274,1888.3,1887.5,0.001]
[1772290642461,3.2838274,1888.3,1887.4,0.001]
[1772290642462,6.08228095,1888.2,1887.4,0.001]
[1772290642648,7.98428095,1888.2,1887.4,0.001]
[1772290642849,1.32408241,1888.1,1887.4,0.001]
[1772290643050,5.29552221,1888.5,1887.4,0.001]
[1772290643051,1.901,1888.7,1887.4,6.07583176]
[1772290643662,1.32359169,1888.8,1887.4,6.07583176]
[1772290643972,1.902,1888.7,1887.4,6.07583176]
[1772290644654,1.901,1888.6,1887.4,6.07583176]
[1772290645170,1.901,1888.6,1887.6,6.07483176]
[1772290645171,1.32380195,1888.5,1887.6,6.07483176]
[1772290646467,1.32380195,1888.5,1887.5,1.32450331]
[1772290646868,6.08228095,1888.4,1887.4,1.32556086]
[1772290647075,1.32394217,1888.3,1887.4,0.001]
[1772290647276,3.65303949,1888.2,1887.4,0.001]
[1772290647580,1.899,1888.1,1887.4,0.001]
[1772290647778,3.65303949,1887.9,1887.4,0.001]
[1772290648078,7.98128095,1888.1,1887.4,0.001]
[1772290648783,1.32394217,1888.3,1887.4,6.07583176]
[1772290649089,1.32380195,1888.5,1887.5,7.39933507]
[1772290649452,3.22380195,1888.5,1887.5,7.39933507]
[1772290651275,1.32380195,1888.5,1887.5,7.39933507]
[1772290651481,3.22480195,1888.5,1887.5,7.39933507]
[1772290652273,3.22480195,1888.5,1887.5,7.40033507]
[1772290652594,0.002,1888.2,1887.5,7.40033507]
[1772290654764,6.08228095,1888.0,1886.9,2.99064214]
[1772290654992,1.9,1887.9,1886.6,6.07483176]
[1772290655294,1.32429282,1887.8,1886.7,1.32506492]
[1772290655499,1.32429282,1887.8,1886.7,7.39989668]
[1772290655500,1.9,1887.7,1886.7,7.39989668]
[1772290655697,1.32429282,1887.8,1886.7,7.39989668]
[1772290656395,1.32429282,1887.8,1886.9,6.07483176]
[1772290657107,7.40657377,1887.8,1886.8,8.07083176]
[1772290657275,7.40657377,1887.8,1886.8,3.32094119]
[1772290657469,1.9,1887.7,1886.8,3.32094119]
[1772290658397,1.899,1887.7,1886.8,3.32094119]
[1772290658604,7.40657377,1887.8,1886.9,6.07483176]
[1772290658605,3.22329282,1887.8,1886.9,6.07483176]
[1772290659496,1.899,1887.7,1886.9,7.39969222]
[1772290659800,1.32429282,1887.8,1886.9,7.39969222]
[1772290659968,3.22327817,1887.9,1886.9,7.39969222]
[1772290660491,3.22327817,1887.9,1887.3,2.04834267]
[1772290660664,1.32427817,1887.9,1887.3,2.04834267]
[1772290661481,1.899,1887.8,1887.3,2.04834267]
[1772290662790,1.899,1887.8,1887.3,0.84155816]
[1772290663095,6.89382823,1887.9,1887.3,0.84155816]
[1772290663096,1.32427817,1887.9,1887.3,0.84155816]
[1772290663327,3.22527817,1887.9,1887.3,0.84155816]
[1772290663603,5.56955006,1887.8,1886.3,5.7592126]
[1772290663898,1.901,1887.7,1886.5,5.7592126]
[1772290664286,1.32427817,1887.9,1886.5,5.7592126]
[1772290664490,3.22527817,1887.9,1886.5,5.7592126]
[1772290664690,1.32427817,1887.9,1886.5,5.7592126]
[1772290665203,1.32427817,1887.9,1886.4,8.58714975]
[1772290665204,1.32408241,1888.1,1886.8,5.53930144]
[1772290665403,1.32408241,1888.1,1887.2,5.53930144]
[1772290666574,1.32601277,1888.2,1887.2,5.53930144]
[1772290666898,1.32601277,1888.2,1887.4,5.53930144]
[1772290667504,1.32601277,1888.2,1887.5,1.32450331]
[1772290668415,1.32601277,1888.2,1887.5,6.86380475]
[1772290669506,1.32601277,1888.2,1887.5,5.53930144]
[1772290669507,0.002,1888.2,1887.5,5.53930144]
[1772290669680,0.002,1888.2,1887.5,6.86379003]
[1772290669875,0.002,1888.2,1887.3,1.32561865]
[1772290670103,5.97727236,1888.2,1887.3,0.001]
[1772290670305,1.898,1888.1,1887.3,1.32561847]
[1772290671595,1.32415254,1888.0,1887.3,0.001]
[1772290672716,0.002,1888.2,1887.3,5.54030144]
[1772290672901,1.32602086,1888.2,1887.4,5.53930144]
[1772290673780,0.002,1888.2,1887.5,1.32450331]
[1772290673982,0.002,1888.2,1887.5,6.86380475]
[1772290675379,0.002,1888.2,1887.5,8.80304595]
[1772290676015,0.002,1888.2,1887.6,5.53930144]
[1772290677111,0.002,1888.2,1887.5,3.2637403]
[1772290678331,0.002,1888.2,1887.5,1.9392412]
[1772290679820,0.002,1888.2,1887.5,3.2637346]
[1772290680305,0.002,1888.2,1887.5,1.9392412]
[1772290680491,0.002,1888.2,1887.5,3.26374332]
[1772290680819,0.002,1888.2,1887.6,5.53930144]
[1772290681113,0.002,1888.3,1887.7,5.53930144]
[1772290681486,0.002,1888.1,1887.7,5.53930144]
[1772290681885,0.002,1888.1,1887.5,3.26373109]
[1772290682222,0.002,1888.1,1887.5,1.9392412]
[1772290683001,5.97727236,1888.1,1887.5,1.9392412]
[1772290683209,5.97727236,1888.1,1887.4,0.001]
[1772290683210,11.08796971,1887.9,1887.4,0.001]
[1772290683405,1.89,1887.9,1887.4,0.001]
[1772290683614,0.002,1888.1,1887.4,6.86487161]
[1772290685120,0.002,1888.5,1887.7,5.53930144]
[1772290685308,0.002,1888.7,1887.9,5.53930144]
[1772290685496,6.57819309,1889.3,1888.2,5.53930144]
[1772290686415,5.29319309,1889.3,1888.3,5.53930144]
[1772290686620,1.89,1889.2,1888.3,5.53930144]
[1772290686988,5.11269735,1889.0,1888.3,5.53930144]
[1772290688020,1.89,1888.9,1888.1,8.27655027]
[1772290688219,1.32352162,1888.9,1888.2,5.53930144]
[1772290688914,7.18199712,1889.3,1888.2,5.53930144]
[1772290689708,7.18199712,1889.3,1888.3,5.53930144]
[1772290690314,1.89,1889.7,1888.6,5.53930144]
[1772290690736,1.89,1889.6,1888.6,5.53930144]
[1772290690923,5.11269735,1889.7,1888.6,5.53930144]
[1772290691106,1.89,1889.6,1888.6,5.53930144]
[1772290691936,1.89,1889.5,1888.6,5.53930144]
[1772290692122,1.89,1889.6,1888.6,5.53930144]
[1772290692322,5.29156524,1889.9,1888.8,5.75230524]
[1772290692617,1.889,1889.8,1888.8,5.75230524]
[1772290692831,1.36960164,1890.3,1889.0,5.75230524]
[1772290693034,1.32261136,1890.3,1889.2,5.75230524]
[1772290693207,3.21161136,1890.3,1889.2,5.75230524]
[1772290693545,1.32261136,1890.3,1889.2,5.75230524]
[1772290693706,3.21161136,1890.3,1889.2,5.75230524]
[1772290693911,6.47846725,1890.1,1889.2,5.75230524]
[1772290694124,1.889,1890.0,1889.2,5.75230524]
[1772290694318,1.32296131,1889.7,1888.9,5.75230524]
[1772290694739,1.32296131,1889.7,1888.8,1.99]
[1772290694941,1.32296131,1889.7,1888.8,3.31358515]
[1772290695240,1.32296131,1889.7,1888.9,5.75230524]
[1772290695543,11.76670928,1890.3,1888.9,5.75230524]
[1772290695857,1.888,1890.2,1888.9,5.75230524]
[1772290696018,5.29021588,1890.3,1888.9,5.75230524]
[1772290696210,7.00269735,1890.2,1888.9,5.75230524]
[1772290696422,1.32268133,1890.1,1889.1,5.75230524]
[1772290697434,3.21168133,1890.1,1889.1,5.75230524]
[1772290698131,1.32268133,1890.1,1889.1,5.75230524]
[1772290698722,0.002,1890.2,1889.3,5.75230524]
[1772290698928,0.002,1890.2,1889.4,5.75230524]
[1772290701330,0.002,1890.2,1889.6,5.75230524]
[1772290703463,0.002,1890.7,1890.0,5.75230524]
[1772290703765,5.11469735,1890.7,1889.9,5.75230524]
[1772290705326,1.884,1890.6,1889.9,5.75230524]
[1772290706056,1.32240148,1890.5,1889.6,7.74030524]
[1772290706356,3.20540148,1890.5,1889.7,5.75230524]
[1772290707620,5.11269735,1890.4,1889.6,1.988]
[1772290707818,1.32240148,1890.5,1889.7,5.75230524]
[1772290708055,1.32254139,1890.3,1889.7,5.75230524]
[1772290708254,1.32254139,1890.3,1889.7,7.07526603]
[1772290709455,1.32254139,1890.3,1889.7,5.75230524]
[1772290709951,0.002,1890.2,1889.7,7.07526578]
[1772290710250,0.002,1890.2,1889.7,5.75230524]
[1772290710554,0.002,1890.2,1889.7,7.07526127]
[1772290711452,0.002,1890.2,1889.7,5.75230524]
[1772290712449,0.002,1890.2,1889.7,7.07526293]
[1772290713156,0.002,1890.2,1889.7,5.75230524]
[1772290714450,0.002,1890.2,1889.7,7.07525436]
[1772290716357,0.002,1890.3,1889.8,5.75230524]
[1772290716556,0.002,1890.3,1890.0,5.75230524]
[1772290717251,0.002,1890.5,1890.1,5.75230524]
[1772290717550,0.002,1890.7,1890.1,5.75230524]
[1772290718538,0.002,1890.7,1890.3,5.75230524]
[1772290718945,0.002,1890.7,1890.5,5.75230524]
[1772290720236,0.002,1890.7,1890.4,1.994]
[1772290720653,0.002,1890.7,1890.5,5.62696998]
[1772290722661,0.002,1890.7,1890.4,1.994]
[1772290723342,0.002,1890.7,1890.4,7.62096998]
[1772290723658,0.002,1890.7,1890.4,8.94343783]
[1772290723861,0.002,1890.6,1890.4,8.94343783]
[1772290724258,0.002,1890.6,1890.4,7.62096998]
[1772290724446,0.002,1890.6,1890.2,1.999]
[1772290724647,0.002,1890.6,1890.2,8.08397576]
[1772290724848,0.002,1890.6,1890.3,6.08497576]
[1772290726666,0.002,1890.6,1890.2,1.999]
[1772290726976,0.002,1890.6,1890.3,6.08497576]
[1772290727637,0.002,1890.6,1890.2,3.32160225]
[1772290728079,0.002,1890.6,1890.2,9.40657801]
[1772290728745,0.002,1890.8,1890.4,6.08497576]
[1772290729066,0.002,1890.8,1890.2,3.32160225]
[1772290729275,0.002,1890.8,1890.5,6.08497576]
[1772290729447,0.002,1890.8,1890.4,2.003]
[1772290731341,0.002,1891.0,1890.5,6.08497576]
[1772290731649,5.78053808,1891.5,1890.5,6.08497576]
[1772290733771,7.10227861,1891.5,1890.6,7.40730729]
[1772290733973,7.10227861,1891.5,1890.7,2.004]
[1772290735978,7.10227861,1891.5,1890.8,1.32219166]
[1772290736274,5.28676165,1891.6,1890.8,1.32219166]
[1772290736275,0.22425076,1892.4,1890.8,7.40716742]
[1772290736475,1.68270405,1892.1,1891.1,6.08497576]
[1772290736675,1.32133641,1892.1,1891.2,6.08497576]
[1772290736978,7.10187449,1892.1,1891.2,6.08497576]
[1772290737558,8.96887449,1892.1,1891.2,6.08497576]
[1772290738075,8.96887449,1892.1,1891.2,7.40682167]
[1772290738251,7.10187449,1892.1,1891.2,7.40682167]
[1772290738458,8.96887449,1892.1,1891.2,7.40682167]
[1772290738674,3.18833641,1892.1,1891.2,7.40682167]
[1772290738874,1.32133641,1892.1,1891.2,7.40682167]
[1772290739178,9.42013879,1892.0,1891.2,7.40682167]
[1772290739562,5.78053808,1892.0,1891.2,7.40682167]
[1772290740176,7.10196098,1891.9,1891.1,3.32492195]
[1772290740574,7.10196098,1891.9,1891.2,6.08497576]
[1772290741176,8.96796098,1891.9,1891.2,6.08497576]
[1772290741378,3.1874229,1891.9,1891.2,6.08497576]
[1772290741763,5.78053808,1891.8,1891.1,3.32498052]
[1772290741958,5.78053808,1891.8,1891.0,5.28806997]
[1772290742150,1.32156261,1891.7,1891.0,7.40702758]
[1772290742962,5.28582678,1891.9,1891.0,7.40702758]
[1772290743353,11.06636486,1891.9,1891.0,7.40702758]
[1772290743863,7.10196098,1891.9,1891.0,7.40702758]
[1772290744565,1.866,1891.8,1891.0,7.40702758]
[1772290747662,7.64553808,1891.8,1891.0,7.40701666]
[1772290748286,7.64653808,1891.8,1891.0,7.40701666]
[1772290748886,3.63960071,1891.2,1890.3,1.3235366]
[1772290749086,3.63960071,1890.9,1890.3,0.001]
[1772290749390,9.42013879,1890.9,1890.3,0.001]
[1772290749892,3.63960071,1890.7,1890.3,0.001]
[1772290750298,11.28613879,1890.7,1889.9,9.55360235]
[1772290750790,3.63960071,1890.5,1889.9,3.46862659]
[1772290750962,1.32247143,1890.4,1889.9,3.46862659]
[1772290753100,5.28988573,1890.5,1889.9,3.46862659]
[1772290753596,7.16058579,1890.6,1890.0,5.7946737]
[1772290753799,7.16158579,1890.6,1890.0,5.7946737]
[1772290754294,5.28958579,1890.6,1890.1,5.7956737]
[1772290754589,7.16095339,1890.8,1890.1,5.7956737]
[1772290754796,5.28895339,1890.8,1890.1,5.7956737]
[1772290754998,1.873,1891.0,1890.1,5.7956737]
[1772290755169,1.32212174,1890.9,1890.2,1.32261136]
[1772290755372,1.32212174,1890.9,1890.2,7.11728506]
[1772290755768,10.75542336,1891.1,1890.1,5.7956737]
[1772290755979,12.62842336,1891.1,1890.1,7.11834606]
[1772290756681,1.873,1891.0,1890.1,7.11834606]
[1772290757314,5.28848696,1891.0,1890.1,7.11834606]
[1772290761595,7.15892367,1891.2,1890.1,7.11834606]
[1772290761893,7.15892367,1891.2,1890.2,0.001]
[1772290762066,7.15892367,1891.2,1890.3,5.7946737]
[1772290762271,0.002,1890.9,1890.3,5.7946737]
[1772290764392,0.002,1890.9,1890.5,5.7946737]
[1772290767285,0.002,1890.9,1890.5,7.11706229]
[1772290768706,0.002,1890.9,1890.2,7.11827341]
[1772290770210,5.79378551,1890.8,1889.7,5.7956737]
[1772290770508,9.43338622,1890.4,1889.7,5.7956737]
[1772290770803,5.28945986,1890.6,1889.8,5.7946737]
[1772290771309,1.32412174,1890.9,1890.1,5.7946737]
[1772290771511,1.32414989,1890.9,1890.3,5.7946737]
[1772290772714,0.002,1890.9,1890.3,7.11720842]
[1772290772911,0.002,1890.9,1890.3,5.7946737]
[1772290776505,5.79578551,1890.9,1890.2,2.002]
[1772290776702,1.32219166,1890.8,1890.2,2.002]
[1772290777812,1.32219166,1890.8,1890.2,7.7966737]
[1772290779124,1.32219166,1890.8,1890.2,9.11926234]
[1772290779288,1.32219166,1890.8,1890.2,7.7966737]
[1772290780115,1.32219166,1890.8,1890.2,9.11927723]
[1772290780917,1.32219166,1890.8,1890.2,7.7966737]
[1772290781114,1.32219166,1890.8,1890.2,9.11928063]
[1772290783318,1.32219166,1890.8,1890.2,3.32460693]
[1772290783616,1.32219166,1890.8,1890.3,6.01657947]
[1772290784811,6.05626677,1890.7,1890.2,0.001]
[1772290785216,3.19633153,1890.6,1890.2,0.001]
[1772290785832,9.2525983,1890.6,1890.2,0.001]
[1772290788420,7.3785983,1890.6,1890.2,0.001]
[1772290788601,1.881,1890.5,1890.2,0.001]
[1772290789124,7.93726677,1890.5,1890.2,0.001]
[1772290790526,3.20647143,1890.4,1890.2,0.001]
[1772290793095,1.32247143,1890.4,1890.2,0.001]
[1772290793417,3.21247143,1890.4,1890.2,0.001]
[1772290793633,0.72864501,1890.3,1890.0,0.001]
[1772290794418,0.72864501,1890.1,1890.0,0.001]
[1772290794719,6.78491178,1890.3,1890.0,0.001]
[1772290794921,0.72864501,1890.1,1890.0,0.001]
[1772290795324,1.32261136,1890.2,1890.0,0.001]
[1772290795505,3.21661136,1890.2,1890.0,0.001]
[1772290800109,1.894,1890.2,1890.0,0.001]
[1772290800304,3.21661792,1890.2,1890.0,0.001]
[1772290800834,1.32419166,1890.8,1890.0,5.91813763]
[1772290801336,0.002,1891.0,1890.3,5.91713763]
[1772290801636,6.05826677,1891.8,1890.6,5.91713763]
[1772290801812,1.823,1891.7,1890.8,5.91713763]
[1772290802011,0.002,1891.7,1890.8,5.91713763]
[1772290802223,1.3235655,1891.7,1890.8,5.91713763]
[1772290802625,1.3235655,1891.7,1891.0,5.91713763]
[1772290802817,6.05626677,1891.6,1890.8,5.91713763]
[1772290803014,6.05626677,1891.4,1890.6,5.91713763]
[1772290803336,11.15772225,1891.4,1890.6,5.91713763]
[1772290803914,7.95926677,1891.3,1890.6,5.91713763]
[1772290804237,6.05626677,1891.3,1890.3,7.23965038]
[1772290804409,1.903,1891.2,1890.3,7.23965038]
[1772290804610,1.903,1891.1,1890.3,7.23965038]
[1772290804815,1.32205182,1891.0,1890.3,5.91713763]
[1772290805238,1.32205182,1891.0,1890.3,7.2396779]
[1772290805439,5.28708892,1891.5,1890.3,8.41999575]
[1772290805647,1.903,1891.4,1890.4,5.91713763]
[1772290806112,1.905,1891.6,1890.4,5.91713763]
[1772290806312,1.32364007,1891.6,1890.6,5.91713763]
[1772290806930,1.32364007,1891.6,1890.8,5.91713763]
[1772290807125,1.32364007,1891.6,1890.9,5.91713763]
[1772290807514,1.32364007,1891.6,1890.7,7.23939922]
[1772290807515,7.37990684,1891.6,1890.7,7.23939922]
[1772290807712,11.15772225,1891.5,1890.7,5.91713763]
[1772290808041,6.05626677,1891.5,1890.7,5.91713763]
[1772290808611,6.05626677,1891.5,1890.4,9.23557265]
[1772290808806,6.05626677,1891.5,1890.5,5.91713763]
[1772290809043,7.378039,1891.4,1890.5,7.23947714]
[1772290809417,9.280039,1891.4,1890.5,7.23947714]
[1772290811060,1.32366778,1891.6,1890.5,7.23947714]
[1772290811348,1.32366778,1891.6,1890.7,5.54073803]
[1772290813051,0.002,1891.6,1890.8,1.32219166]
[1772290813254,0.002,1891.6,1890.9,5.54073803]
[1772290815363,0.002,1891.6,1891.1,5.54073803]
[1772290817673,0.002,1891.6,1891.3,5.54073803]
[1772290818765,0.002,1891.7,1891.3,5.54073803]
[1772290819133,5.85033441,1891.7,1890.9,5.54173803]
[1772290819356,5.85033441,1891.7,1890.9,0.001]
[1772290819530,7.17017652,1891.3,1890.9,0.001]
[1772290820143,1.32184211,1891.3,1890.9,0.001]
[1772290820745,3.21882366,1891.4,1890.9,0.001]
[1772290821843,5.28666465,1891.6,1890.9,5.54173803]
[1772290822044,0.002,1891.7,1890.9,5.54173803]
[1772290822260,1.32357311,1891.7,1890.9,5.54173803]
[1772290824171,0.002,1891.7,1891.1,5.54073803]
[1772290825247,0.002,1891.7,1891.3,5.54073803]
[1772290826072,0.002,1891.7,1891.1,6.86270718]
[1772290826643,0.002,1891.7,1891.1,6.86271354]
[1772290828977,0.002,1891.7,1891.2,5.54173803]
[1772290829274,0.002,1891.6,1891.2,5.54173803]
[1772290830479,0.002,1891.8,1891.4,5.54073803]
[1772290831570,7.14923298,1892.1,1891.4,5.54073803]
[1772290832458,7.14923298,1892.1,1891.4,10.82782515]
[1772290832887,7.14923298,1892.1,1891.4,6.86251026]
[1772290835196,5.84833441,1892.3,1891.5,5.54073803]
[1772290835877,1.894,1892.2,1891.5,5.54073803]
[1772290836077,7.74233441,1892.2,1891.5,5.54073803]
[1772290836582,1.32128323,1892.1,1891.6,1.32163248]
[1772290836788,1.32128323,1892.1,1891.6,6.86237051]
[1772290837165,13.02724686,1892.2,1891.6,6.86237051]
[1772290838365,13.02824686,1892.2,1891.6,6.86237051]
[1772290838565,7.17991245,1892.2,1891.6,6.86237051]
[1772290838966,5.84833441,1892.0,1891.3,1.32183932]
[1772290839166,5.84833441,1892.0,1891.3,6.86257735]
[1772290839779,5.84833441,1892.0,1891.2,0.001]
[1772290839981,5.84833441,1892.0,1891.2,6.86364861]
[1772290840199,13.02824686,1892.2,1891.2,6.86364861]
[1772290840402,11.13324686,1892.2,1891.2,6.86364861]
[1772290840608,13.02924686,1892.2,1891.2,6.86364861]
[1772290841312,5.86908126,1892.1,1891.2,6.86364861]
[1772290842012,5.86908126,1892.1,1891.3,0.001]
[1772290842213,5.86908126,1892.1,1891.4,5.57793815]
[1772290842384,0.002,1892.0,1891.4,5.57793815]
[1772290843100,1.32335306,1892.0,1891.5,1.32170235]
[1772290843303,1.32335306,1892.0,1891.5,6.8996405]
[1772290843881,7.30448456,1892.0,1891.3,1.32284132]
[1772290844632,5.9811315,1891.8,1891.3,0.001]
[1772290844782,5.9811315,1891.8,1891.2,0.001]
[1772290845188,5.9811315,1891.5,1891.2,0.001]
[1772290845421,7.8791315,1891.4,1891.2,0.001]
[1772290846085,7.8791315,1891.4,1891.0,0.001]
[1772290847290,1.32184211,1891.3,1891.0,0.001]
[1772290847513,7.30297361,1891.3,1891.0,0.001]
[1772290849820,5.2861222,1891.8,1891.0,5.52757112]
[1772290849821,5.28631339,1891.7,1891.0,5.52757112]
[1772290850022,1.905,1891.6,1891.0,5.52757112]
[1772290850519,13.1644334,1891.7,1891.0,5.52757112]
[1772290850722,1.906,1891.6,1891.0,5.52757112]
[1772290851122,11.2584334,1891.7,1891.0,5.52757112]
[1772290851334,1.906,1891.6,1891.0,5.52757112]
[1772290851923,1.32170235,1891.5,1891.0,6.84961217]
[1772290852128,1.32170235,1891.5,1891.0,6.84962115]
[1772290852494,1.32170235,1891.5,1891.0,5.52757112]
[1772290852695,1.32170235,1891.5,1891.0,0.001]
[1772290852917,3.22870235,1891.5,1891.0,6.84962053]
[1772290853091,3.22870235,1891.5,1891.0,5.52757112]
[1772290853709,3.22965634,1891.6,1891.0,6.84961807]
[1772290853906,1.32152968,1891.8,1891.0,6.84961807]
[1772290854193,7.27679443,1891.8,1891.0,5.52757112]
[1772290854401,7.86326475,1891.7,1891.0,5.52757112]
[1772290854611,5.95526475,1891.7,1891.0,6.84961198]
[1772290854796,1.908,1891.6,1891.0,6.84961198]
[1772290854999,1.908,1891.6,1891.1,0.001]
[1772290855231,1.908,1891.7,1891.1,5.52757112]
[1772290855447,0.002,1891.6,1891.1,5.52757112]
[1772290856043,1.32363248,1891.6,1891.1,5.52757112]
[1772290856329,7.27049359,1891.6,1891.1,0.001]
[1772290856644,9.58535953,1891.4,1891.1,0.001]
[1772290856806,7.85586111,1891.4,1890.9,0.001]
[1772290857008,3.63849842,1891.2,1890.9,0.001]
[1772290857213,3.63849842,1891.2,1890.8,0.001]
[1772290857739,5.94161247,1891.3,1890.8,0.001]
[1772290858934,0.002,1891.6,1890.8,5.52757112]
[1772290859141,13.13100147,1891.5,1890.8,5.52757112]
[1772290859434,9.57167757,1891.4,1890.8,0.001]
[1772290859599,5.93317915,1891.4,1890.8,5.52757112]
[1772290859790,5.28682232,1891.5,1890.8,5.52757112]
[1772290860000,1.911,1891.4,1890.8,5.52757112]
[1772290860200,5.28682232,1891.5,1890.8,5.52757112]
[1772290861313,9.56323251,1891.4,1890.8,5.52757112]
[1772290861646,7.83673409,1891.3,1890.8,0.001]
[1772290862127,3.63849842,1891.2,1890.8,0.001]
[1772290862345,9.55905347,1891.2,1890.8,0.001]
[1772290862714,1.913,1891.1,1890.8,0.001]
[1772290863041,1.913,1891.4,1890.8,5.52757112]
[1772290863228,3.63849842,1891.2,1890.8,0.001]
[1772290863437,7.82928212,1891.4,1890.8,0.001]
[1772290863438,5.91628212,1891.4,1890.8,0.001]
[1772290863744,1.32177223,1891.5,1890.8,5.52757112]
[1772290864822,1.3236738,1891.6,1890.8,5.52757112]
[1772290865023,0.002,1891.6,1890.9,6.84869286]
[1772290865241,0.002,1891.6,1891.1,5.52657112]
[1772290866647,0.002,1891.7,1891.2,5.52657112]
[1772290867022,0.002,1891.7,1891.4,5.52657112]
[1772290867946,0.002,1891.5,1891.4,5.52657112]
[1772290868945,0.002,1891.7,1891.4,5.52657112]
[1772290869124,0.002,1891.7,1891.4,6.8482865]
[1772290872766,0.002,1892.1,1891.4,1.32171538]
[1772290872928,0.002,1892.3,1891.7,5.51472333]
[1772290873120,0.002,1892.3,1891.9,5.51472333]
[1772290875434,0.002,1892.3,1892.0,1.32135306]
[1772290875626,0.002,1892.3,1892.1,5.51472333]
[1772290876062,0.002,1892.3,1891.7,5.51472333]
[1772290876363,0.002,1892.3,1891.5,6.83638381]
[1772290876364,5.55505897,1892.3,1891.5,6.83638381]
[1772290876859,0.002,1892.3,1891.5,6.83638381]
[1772290877025,0.002,1892.3,1891.5,6.83641387]
[1772290877674,5.55505897,1892.3,1891.5,5.51472333]
[1772290877898,5.55505897,1892.3,1891.5,6.83642368]
[1772290878365,0.002,1892.3,1891.7,5.51472333]
[1772290878676,0.002,1892.3,1891.9,5.51472333]
[1772290879874,0.002,1892.3,1892.0,1.32135306]
[1772290880179,1.32086437,1892.7,1892.1,5.51472333]
[1772290880345,0.002,1892.2,1892.1,5.51472333]
[1772290880547,1.32086437,1892.7,1892.1,5.51472333]
[1772290880742,12.3839668,1893.1,1892.3,5.51472333]
[1772290880948,17.93702577,1893.1,1892.3,5.51472333]
[1772290881487,0.002,1892.5,1892.2,2.0]
[1772290881983,0.002,1892.5,1892.2,3.32119212]
[1772290882182,0.002,1892.5,1892.2,8.83591545]
[1772290882481,0.002,1892.5,1892.2,7.51472333]
[1772290882654,0.002,1892.5,1892.2,8.83593]
[1772290882860,0.002,1892.5,1892.3,5.51472333]
[1772290883876,12.3839668,1893.1,1892.4,1.32107376]
[1772290884084,17.93702577,1893.1,1892.3,1.32109161]
[1772290884253,17.93702577,1893.1,1892.3,6.83581494]
[1772290885698,12.3839668,1893.1,1892.3,6.83581494]
[1772290885882,12.3839668,1893.1,1892.3,5.51472333]
[1772290886093,12.3839668,1893.1,1892.3,6.8358581]
[1772290887358,11.06338152,1893.1,1892.5,5.51472333]
[1772290887563,12.38397024,1893.1,1892.6,7.51672333]
[1772290888767,12.38398478,1893.1,1892.7,5.51472333]
[1772290889087,11.06338152,1893.1,1892.7,5.51472333]
[1772290889987,12.38397412,1893.1,1892.7,5.51472333]
[1772290890298,12.38397412,1893.1,1892.3,3.32409951]
[1772290890463,17.93703309,1893.1,1892.3,8.83882284]
[1772290890664,12.38397412,1893.1,1892.4,5.51472333]
[1772290891463,11.06338152,1893.1,1892.8,5.51472333]
[1772290891670,11.06338152,1893.1,1892.4,7.51772333]
[1772290891671,12.38397156,1893.1,1892.4,7.51772333]